fUSD/lending_fUSD_20250107
["ID","MTS","AMOUNT","RATE_DAILY","PERIOD"]
[348044814,1736277038867,-500.0,9.997e-05,2]
[348044815,1736277038877,-500.0,9.997e-05,2]
[348044816,1736277038886,-500.0,9.997e-05,2]
[348044817,1736277038895,-500.0,9.997e-05,2]
[348044818,1736277038904,-500.0,9.997e-05,2]
[348044819,1736277038914,-500.0,9.997e-05,2]
[348044820,1736277038924,-500.0,9.997e-05,2]
[348044821,1736277038934,-353.86525445,9.997e-05,2]
[348044822,1736277038943,-500.0,9.997e-05,2]
[348044823,1736277038953,-500.0,9.997e-05,2]
[348044824,1736277038963,-500.0,9.997e-05,2]
[348044825,1736277038972,-500.0,9.997e-05,2]
[348044826,1736277038982,-500.0,9.997e-05,2]
[348044827,1736277038992,-500.0,9.997e-05,2]
[348044828,1736277039002,-500.0,9.997e-05,2]
[348044829,1736277039011,-500.0,9.997e-05,2]
[348044830,1736277039020,-500.0,9.997e-05,2]
[348044831,1736277039030,-500.0,9.997e-05,2]
[348044832,1736277039039,-500.0,9.997e-05,2]
[348044833,1736277039049,-500.0,9.997e-05,2]
[348044834,1736277039058,-500.0,9.998e-05,2]
[348044835,1736277039068,-500.0,9.998e-05,2]
[348044836,1736277039077,-689.69,9.998e-05,2]
[348044837,1736277039087,-830.56,9.998e-05,2]
[348044838,1736277039097,-807.29,9.998e-05,2]
[348044839,1736277039107,-615.98,9.998e-05,2]
[348044840,1736277039116,-500.0,9.998e-05,2]
[348044841,1736277039125,-2009.5,9.998e-05,2]
[348044842,1736277039134,-833.96,9.998e-05,2]
[348044843,1736277039144,-500.0,9.998e-05,2]
[348044844,1736277039153,-1978.41,9.998e-05,2]
[348044845,1736277039164,-500.0,9.998e-05,2]
[348044846,1736277039175,-500.0,9.998e-05,2]
[348044847,1736277039185,-1631.04,9.998e-05,2]
[348044848,1736277039195,-500.0,9.998e-05,2]
[348044849,1736277039205,-500.0,9.998e-05,2]
[348044850,1736277039215,-500.0,9.998e-05,2]
[348044851,1736277039224,-500.0,9.998e-05,2]
[348044852,1736277039234,-500.0,9.998e-05,2]
[348044853,1736277039243,-500.0,9.998e-05,2]
[348044854,1736277039253,-500.0,9.998e-05,2]
[348044855,1736277039266,-809.56,9.998e-05,2]
[348044856,1736277039281,-500.0,9.998e-05,2]
[348044857,1736277039290,-569.52781597,9.998e-05,2]
[348044858,1736277039299,-565.07,9.998e-05,2]
[348044859,1736277039308,-1561.59,9.998e-05,2]
[348044860,1736277039318,-205.33817375,9.998e-05,2]
[348044861,1736277039328,-500.0,9.998e-05,2]
[348044862,1736277039338,-500.0,9.998e-05,2]
[348044863,1736277039348,-500.0,9.998e-05,2]
[348044864,1736277039363,-500.0,9.998e-05,2]
[348044865,1736277039373,-500.0,9.998e-05,2]
[348044866,1736277039383,-500.0,9.998e-05,2]
[348044867,1736277039393,-500.0,9.998e-05,2]
[348044868,1736277039403,-500.0,9.998e-05,2]
[348044869,1736277039415,-500.0,9.998e-05,2]
[348044870,1736277039427,-500.0,9.998e-05,2]
[348044871,1736277039437,-500.0,9.998e-05,2]
[348044872,1736277039446,-871.07,9.998e-05,2]
[348044873,1736277039456,-762.14,9.998e-05,2]
[348044874,1736277039467,-1038.8,9.998e-05,2]
[348044875,1736277039476,-720.54,9.998e-05,2]
[348044876,1736277039486,-1977.94,9.998e-05,2]
[348044877,1736277039495,-883.46,9.998e-05,2]
[348044878,1736277039507,-1492.46,9.998e-05,2]
[348044879,1736277039516,-833.47,9.998e-05,2]
[348044880,1736277039526,-1558.97,9.998e-05,2]
[348044881,1736277039536,-888.81,9.998e-05,2]
[348044882,1736277039545,-500.0,9.998e-05,2]
[348044883,1736277039555,-638.03,9.998e-05,2]
[348044884,1736277039566,-531.56,9.998e-05,2]
[348044885,1736277039576,-1353.8,9.998e-05,2]
[348044886,1736277039586,-862.65,9.998e-05,2]
[348044887,1736277039595,-842.58,9.998e-05,2]
[348044888,1736277039604,-862.23,9.998e-05,2]
[348044889,1736277039615,-500.74,9.998e-05,2]
[348044890,1736277039625,-685.45,9.998e-05,2]
[348044891,1736277039634,-633.75,9.998e-05,2]
[348044892,1736277039644,-500.0,9.998e-05,2]
[348044893,1736277039654,-858.76,9.998e-05,2]
[348044894,1736277039665,-500.0,9.998e-05,2]
[348044895,1736277039675,-919.0,9.998e-05,2]
[348044896,1736277039686,-565.48,9.998e-05,2]
[348044897,1736277039695,-500.0,9.998e-05,2]
[348044898,1736277039706,-500.0,9.998e-05,2]
[348044899,1736277039716,-1023.32,9.998e-05,2]
[348044900,1736277039726,-500.0,9.999e-05,2]
[348044901,1736277039736,-500.0,9.999e-05,2]
[348044902,1736277039746,-277.40319844,9.999e-05,2]
[348044903,1736277039757,-500.0,9.999e-05,2]
[348044904,1736277039767,-532.58190395,9.999e-05,2]
[348044905,1736277039776,-471.49478764,9.999e-05,2]
[348044906,1736277039786,-500.0,9.999e-05,2]
[348044907,1736277039795,-500.0,9.999e-05,2]
[348044908,1736277039806,-500.0,9.999e-05,2]
[348044909,1736277039818,-500.0,9.999e-05,2]
[348044910,1736277039827,-514.11,9.999e-05,2]
[348044911,1736277039837,-500.0,9.999e-05,2]
[348044912,1736277039847,-500.0,9.999e-05,2]
[348044913,1736277039857,-500.0,9.999e-05,2]
[348044914,1736277039867,-500.0,9.999e-05,2]
[348044915,1736277039876,-500.0,9.999e-05,2]
[348044916,1736277039887,-500.0,9.999e-05,2]
[348044917,1736277039897,-500.0,9.999e-05,2]
[348044918,1736277039917,-500.0,9.999e-05,2]
[348044919,1736277039927,-500.0,9.999e-05,2]
[348044920,1736277039939,-500.0,9.999e-05,2]
[348044921,1736277039950,-500.0,9.999e-05,2]
[348044922,1736277039959,-500.0,9.999e-05,2]
[348044923,1736277039969,-500.0,9.999e-05,2]
[348044924,1736277039979,-500.0,9.999e-05,2]
[348044925,1736277039988,-500.0,9.999e-05,2]
[348044926,1736277039998,-476.56100717,9.999e-05,2]
[348044927,1736277040019,-23.43899283,9.999e-05,2]
[348044929,1736277040028,-500.0,9.999e-05,2]
[348044931,1736277040037,-500.0,9.999e-05,2]
[348044933,1736277040047,-500.0,9.999e-05,2]
[348044935,1736277040056,-500.0,9.999e-05,2]
[348044937,1736277040066,-500.0,9.999e-05,2]
[348044938,1736277040076,-500.0,9.999e-05,2]
[348044940,1736277040085,-500.0,9.999e-05,2]
[348044943,1736277040095,-500.0,9.999e-05,2]
[348044944,1736277040104,-500.0,9.999e-05,2]
[348044946,1736277040114,-512.46,9.999e-05,2]
[348044947,1736277040123,-500.0,9.999e-05,2]
[348044948,1736277040132,-500.0,9.999e-05,2]
[348044949,1736277040142,-500.0,9.999e-05,2]
[348044950,1736277040151,-500.0,9.999e-05,2]
[348044951,1736277040161,-323.85970035,9.999e-05,2]
[348044952,1736277040172,-500.0,9.999e-05,2]
[348044953,1736277040182,-500.0,9.999e-05,2]
[348044954,1736277040192,-500.0,9.999e-05,2]
[348044955,1736277040202,-500.0,9.999e-05,2]
[348044956,1736277040211,-500.0,9.999e-05,2]
[348044957,1736277040222,-500.0,9.999e-05,2]
[348044958,1736277040231,-500.0,9.999e-05,2]
[348044959,1736277040241,-500.0,9.999e-05,2]
[348044960,1736277040251,-500.0,9.999e-05,2]
[348044961,1736277040261,-500.0,9.999e-05,2]
[348044962,1736277040270,-500.0,9.999e-05,2]
[348044963,1736277040280,-538.59,9.999e-05,2]
[348044964,1736277040290,-500.0,9.999e-05,2]
[348044965,1736277040300,-500.0,9.999e-05,2]
[348044966,1736277040310,-500.0,9.999e-05,2]
[348044967,1736277040320,-500.0,9.999e-05,2]
[348044968,1736277040330,-432.03574883,9.999e-05,2]
[348044969,1736277040339,-500.0,9.999e-05,2]
[348044970,1736277040351,-613.51,9.999e-05,2]
[348044971,1736277040362,-500.0,9.999e-05,2]
[348044972,1736277040373,-500.0,9.999e-05,2]
[348044973,1736277040384,-500.0,9.999e-05,2]
[348044974,1736277040394,-500.0,9.999e-05,2]
[348044975,1736277040405,-500.0,9.999e-05,2]
[348044976,1736277040417,-500.0,9.999e-05,2]
[348044977,1736277040431,-500.0,9.999e-05,2]
[348044978,1736277040441,-500.0,9.999e-05,2]
[348044979,1736277040452,-500.0,9.999e-05,2]
[348044980,1736277040463,-500.0,9.999e-05,2]
[348044981,1736277040473,-500.0,9.999e-05,2]
[348044982,1736277040483,-500.0,9.999e-05,2]
[348044983,1736277040493,-500.0,9.999e-05,2]
[348044984,1736277040505,-500.0,9.999e-05,2]
[348044985,1736277040515,-500.0,9.999e-05,2]
[348044986,1736277040525,-500.0,9.999e-05,2]
[348044987,1736277040534,-500.0,9.999e-05,2]
[348044988,1736277040544,-500.0,9.999e-05,2]
[348044989,1736277040555,-500.0,9.999e-05,2]
[348044990,1736277040565,-500.0,9.999e-05,2]
[348044991,1736277040575,-500.0,9.999e-05,2]
[348044992,1736277040584,-500.0,9.999e-05,2]
[348044993,1736277040594,-500.0,9.999e-05,2]
[348044994,1736277040604,-500.0,9.999e-05,2]
[348044995,1736277040614,-500.0,9.999e-05,2]
[348044996,1736277040625,-500.0,9.999e-05,2]
[348044997,1736277040635,-500.0,9.999e-05,2]
[348044998,1736277040645,-500.0,9.999e-05,2]
[348044999,1736277040655,-500.0,9.999e-05,2]
[348045000,1736277040666,-500.0,9.999e-05,2]
[348045001,1736277040676,-500.0,9.999e-05,2]
[348045002,1736277040686,-500.0,9.999e-05,2]
[348045003,1736277040696,-500.0,9.999e-05,2]
[348045004,1736277040705,-500.0,9.999e-05,2]
[348045005,1736277040716,-375.45005182,9.999e-05,2]
[348045006,1736277040725,-500.0,9.999e-05,2]
[348045008,1736277040735,-500.0,9.999e-05,2]
[348045010,1736277040745,-500.0,9.999e-05,2]
[348045011,1736277040755,-248.05685605,9.999e-05,2]
[348045012,1736277040764,-500.0,9.999e-05,2]
[348045013,1736277040774,-500.0,9.999e-05,2]
[348045014,1736277040783,-500.0,9.999e-05,2]
[348045015,1736277040793,-500.0,9.999e-05,2]
[348045016,1736277040803,-500.0,9.999e-05,2]
[348045017,1736277040812,-265.69721427,9.999e-05,2]
[348045018,1736277040825,-234.30278573,9.999e-05,2]
[348045019,1736277040835,-149.84661577,9.999e-05,2]
[348045020,1736277040846,-350.15338423,9.999e-05,2]
[348045021,1736277040855,-500.0,9.999e-05,2]
[348045022,1736277040864,-500.0,9.999e-05,2]
[348045023,1736277040873,-500.0,9.999e-05,2]
[348045024,1736277040883,-500.0,9.999e-05,2]
[348045025,1736277040892,-503.51,9.999e-05,2]
[348045026,1736277040902,-574.26,9.999e-05,2]
[348045027,1736277040912,-500.0,9.999e-05,2]
[348045028,1736277040923,-2245.07,9.999e-05,2]
[348045029,1736277040933,-500.0,9.999e-05,2]
[348045030,1736277040943,-500.0,9.999e-05,2]
[348045031,1736277040954,-546.76,9.999e-05,2]
[348045032,1736277040964,-507.07,9.999e-05,2]
[348045033,1736277040973,-1227.21,9.999e-05,2]
[348045034,1736277040983,-500.0,9.999e-05,2]
[348045035,1736277040993,-392.92040733,9.999e-05,2]
[348045036,1736277041003,-500.0,9.999e-05,2]
[348045037,1736277041012,-2889.47,9.999e-05,2]
[348045038,1736277041022,-500.0,9.999e-05,2]
[348045039,1736277041032,-500.0,9.999e-05,2]
[348045040,1736277041041,-500.0,9.999e-05,2]
[348045041,1736277041051,-500.0,9.999e-05,2]
[348045042,1736277041061,-500.0,9.999e-05,2]
[348045043,1736277041070,-500.0,9.999e-05,2]
[348045044,1736277041080,-500.0,9.999e-05,2]
[348045045,1736277041089,-500.0,9.999e-05,2]
[348045046,1736277041099,-500.0,9.999e-05,2]
[348045047,1736277041108,-500.0,9.999e-05,2]
[348045048,1736277041118,-500.0,9.999e-05,2]
[348045049,1736277041127,-500.0,9.999e-05,2]
[348045050,1736277041137,-636.04,9.999e-05,2]
[348045051,1736277041146,-650.69,9.999e-05,2]
[348045052,1736277041156,-500.0,9.999e-05,2]
[348045053,1736277041168,-204.17291612,9.999e-05,2]
[348045054,1736277041195,-424.3157236,9.998e-05,2]
[348045055,1736277041206,-75.6842764,9.998e-05,2]
[348045056,1736277041216,-1923.06708388,9.999e-05,2]
[348045057,1736277041225,-500.0,9.999e-05,2]
[348045058,1736277041235,-500.0,9.999e-05,2]
[348045059,1736277041244,-500.0,9.999e-05,2]
[348045060,1736277041254,-500.0,9.999e-05,2]
[348045061,1736277041263,-1098.53,9.999e-05,2]
[348045062,1736277041272,-500.0,9.999e-05,2]
[348045063,1736277041281,-500.0,9.999e-05,2]
[348045064,1736277041290,-212.03582858,9.999e-05,2]
[348045065,1736277041302,-287.96417142,9.999e-05,2]
[348045066,1736277041311,-500.0,9.999e-05,2]
[348045067,1736277041321,-1352.2,9.999e-05,2]
[348045068,1736277041331,-500.0,9.999e-05,2]
[348045069,1736277041340,-500.0,9.999e-05,2]
[348045070,1736277041349,-500.000001,9.999e-05,2]
[348045071,1736277041358,-500.0,9.999e-05,2]
[348045072,1736277041368,-500.0,9.999e-05,2]
[348045073,1736277041377,-500.0,9.999e-05,2]
[348045074,1736277041387,-1799.28,9.999e-05,2]
[348045075,1736277041396,-500.0,9.999e-05,2]
[348045076,1736277041406,-500.0,9.999e-05,2]
[348045077,1736277041418,-500.0,9.999e-05,2]
[348045078,1736277041433,-1360.49,9.999e-05,2]
[348045079,1736277041442,-658.28,9.999e-05,2]
[348045080,1736277041452,-500.0,9.999e-05,2]
[348045081,1736277041463,-451.11249842,9.999e-05,2]
[348045082,1736277041473,-500.0,9.999e-05,2]
[348045083,1736277041483,-500.0,9.999e-05,2]
[348045084,1736277041492,-500.0,9.999e-05,2]
[348045085,1736277041503,-500.0,9.999e-05,2]
[348045086,1736277041514,-500.0,9.999e-05,2]
[348045087,1736277041524,-596.04,9.999e-05,2]
[348045088,1736277041533,-500.0,9.999e-05,2]
[348045089,1736277041542,-500.0,9.999e-05,2]
[348045090,1736277041552,-834.31,9.999e-05,2]
[348045091,1736277041561,-500.0,9.999e-05,2]
[348045092,1736277041571,-500.0,9.999e-05,2]
[348045093,1736277041580,-500.0,9.999e-05,2]
[348045094,1736277041590,-215.35538053,9.999e-05,2]
[348045095,1736277041599,-500.0,9.999e-05,2]
[348045096,1736277041608,-730.98,9.999e-05,2]
[348045097,1736277041617,-500.0,9.999e-05,2]
[348045098,1736277041627,-638.35,9.999e-05,2]
[348045099,1736277041636,-500.0,9.999e-05,2]
[348045100,1736277041645,-500.0,9.999e-05,2]
[348045101,1736277041655,-500.0,9.999e-05,2]
[348045102,1736277041664,-500.0,9.999e-05,2]
[348045103,1736277041675,-500.0,9.999e-05,2]
[348045104,1736277041684,-500.0,9.999e-05,2]
[348045105,1736277041695,-597.37,9.999e-05,2]
[348045106,1736277041704,-500.0,9.999e-05,2]
[348045107,1736277041713,-500.0,9.999e-05,2]
[348045108,1736277041722,-500.0,9.999e-05,2]
[348045109,1736277041731,-500.0,9.999e-05,2]
[348045110,1736277041740,-500.0,9.999e-05,2]
[348045111,1736277041750,-500.0,9.999e-05,2]
[348045112,1736277041759,-414.45558137,9.999e-05,2]
[348045113,1736277041768,-860.44,9.999e-05,2]
[348045114,1736277041778,-261.00063688,0.0001,2]
[348045115,1736277041787,-74417.3576953,0.0001,4]
[348045116,1736277041799,-309.30209467,0.0001,4]
[348045117,1736277041810,-436.27493252,0.0001,4]
[348045118,1736277041821,-748.0000006,0.0001,4]
[348045119,1736277041911,-500.0,9.999e-05,2]
[348045120,1736277041923,-1303.82920904,0.0001,4]
[348045121,1736277041935,-1420.97594,0.0001,4]
[348045122,1736277041953,-2773.02003679,0.0001,4]
[348045123,1736277041964,-970.14386277,0.0001,4]
[348045124,1736277041975,-409.90805178,0.0001,4]
[348045125,1736277042087,-565.62,9.998e-05,2]
[348045126,1736277042096,-1855.085,0.0001,4]
[348045127,1736277042107,-685.4,0.0001,4]
[348045128,1736277042118,-765.59150185,0.0001,4]
[348045129,1736277042129,-1453.7,0.0001,4]
[348045130,1736277042141,-1291.29661166,0.0001,4]
[348045131,1736277042158,-24235.340211,0.0001,4]
[348045140,1736277043175,-2033.6999997,0.0001,4]
[348045141,1736277043187,-682.65982,0.0001,4]
[348045142,1736277043199,-789.1538285,0.0001,4]
[348045143,1736277043210,-606.78,0.0001,4]
[348045144,1736277043222,-17715.63930157,0.0001,4]
[348045145,1736277043233,-19627.23350529,0.0001,4]
[348045146,1736277043244,-4834.5089715,0.0001,4]
[348045147,1736277043255,-1697.85,0.0001,4]
[348045148,1736277043266,-590.55643446,0.0001,4]
[348045149,1736277043294,-3901.58511562,0.0001,4]
[348045150,1736277043306,-135679.75832466,0.0001,4]
[348045151,1736277043317,-119578.9427427,0.0001,4]
[348045152,1736277043354,-16317.0032043,0.0001,4]
[348045153,1736277043407,-604637.59908082,0.0001,4]
[348045154,1736277043420,-1625.12732268,0.0001,4]
[348045156,1736277046111,-1176.07,9.998e-05,2]
[348045157,1736277046120,-136.429999,9.999e-05,2]
[348045158,1736277046132,-374.090001,9.999e-05,2]
[348045159,1736277046141,-500.0,9.999e-05,2]
[348045160,1736277046151,-3138.34031084,0.0001,4]
[348045161,1736277046299,-25258.02303684,0.0001,4]
[348045162,1736277046767,-151.80335489,9.973e-05,2]
[348045163,1736277046777,-311719.20684844,0.0001,4]
[348045164,1736277046789,-1699.5776081,0.0001,4]
[348045165,1736277046810,-1653.14189499,0.0001,4]
[348045166,1736277046821,-9400.0,0.0001,4]
[348045172,1736277603901,160.0,0.0001,30]
[348045173,1736277785649,150.0,8.066e-05,2]
[348045174,1736277854424,1564.59,8.219e-05,2]
[348045175,1736277903200,160.0,0.0001,30]
[348045176,1736277905020,150.0,8.062e-05,2]
[348045177,1736277905108,150.0,7.637e-05,2]
[348045178,1736277905314,150.0,8.314e-05,2]
[348045179,1736277917604,1500.0,7.766e-05,2]
[348045181,1736277965232,150.0,7.604e-05,2]
[348045182,1736277965529,150.0,7.937e-05,2]
[348045183,1736277965629,150.0,7.912e-05,2]
[348045184,1736277965672,150.0,8.433e-05,2]
[348045185,1736277965826,150.0,7.323e-05,2]
[348045186,1736277965867,150.0,7.68e-05,2]
[348045188,1736278033806,150.0,7.331e-05,2]
[348045191,1736278085459,150.0,7.57e-05,2]
[348045200,1736278203487,160.0,0.0001,30]
[348045224,1736278232430,-250.0,8.529e-05,2]
[348045225,1736278232441,-1181.05,8.542e-05,2]
[348045226,1736278232450,-150.0,8.615e-05,2]
[348045227,1736278232460,-250.0,8.655e-05,2]
[348045228,1736278232469,-150.0,8.663e-05,2]
[348045229,1736278232479,-2737.68884443,8.663e-05,2]
[348045230,1736278232488,-150.0,8.671e-05,2]
[348045231,1736278232497,-150.0,8.755e-05,2]
[348045232,1736278232507,-150.0,8.763e-05,2]
[348045233,1736278232516,-900.0,8.768e-05,2]
[348045234,1736278232526,-1500.0,8.776e-05,2]
[348045235,1736278232535,-1500.0,8.82e-05,2]
[348045236,1736278232545,-150.0,8.821e-05,2]
[348045237,1736278232554,-150.0,8.83e-05,2]
[348045238,1736278232564,-150.0,8.915e-05,2]
[348045239,1736278232573,-150.0,8.921e-05,2]
[348045240,1736278232582,-410.98614027,8.954e-05,2]
[348045241,1736278232591,-150.0,8.979e-05,2]
[348045242,1736278232601,-1729.8025,8.981e-05,2]
[348045243,1736278232611,-711.68623832,8.981e-05,2]
[348045244,1736278232621,-150.0,9e-05,2]
[348045245,1736278232631,-150.0,9e-05,2]
[348045246,1736278232640,-150.0,9e-05,2]
[348045247,1736278232650,-150.5109069,9e-05,2]
[348045248,1736278232660,-150.86544738,9e-05,2]
[348045249,1736278232669,-150.0,9e-05,2]
[348045250,1736278232679,-150.0,9.013e-05,2]
[348045251,1736278232689,-150.0,9.043e-05,2]
[348045252,1736278232699,-1500.0,9.057e-05,2]
[348045253,1736278232708,-809.28,9.081e-05,2]
[348045254,1736278232718,-150.0,9.081e-05,2]
[348045255,1736278232731,-150.0,9.087e-05,2]
[348045256,1736278232741,-3200.0,9.1e-05,3]
[348045257,1736278232751,-150.0,9.111e-05,2]
[348045258,1736278232760,-1000.0,9.116e-05,2]
[348045259,1736278232771,-150.0,9.125e-05,2]
[348045260,1736278232780,-150.0,9.13e-05,2]
[348045261,1736278232790,-150.0,9.174e-05,2]
[348045262,1736278232803,-150.0,9.174e-05,2]
[348045263,1736278232814,-6500.0,9.2e-05,3]
[348045264,1736278232824,-150.0,9.217e-05,2]
[348045265,1736278232834,-150.0,9.222e-05,2]
[348045266,1736278232843,-279.35872757,9.231e-05,2]
[348045267,1736278232853,-150.0,9.242e-05,2]
[348045268,1736278232863,-150.0,9.25e-05,2]
[348045269,1736278232874,-150.0,9.261e-05,2]
[348045270,1736278232883,-178.93959585,9.298e-05,2]
[348045271,1736278232892,-9800.0,9.3e-05,3]
[348045272,1736278232901,-150.0,9.304e-05,2]
[348045273,1736278232911,-437.76,9.31e-05,2]
[348045274,1736278232921,-771.88,9.31e-05,2]
[348045275,1736278232930,-437.76,9.31e-05,2]
[348045276,1736278232939,-771.88,9.31e-05,2]
[348045277,1736278232948,-771.88,9.31e-05,2]
[348045278,1736278232958,-437.76,9.31e-05,2]
[348045279,1736278232967,-150.0,9.333e-05,2]
[348045280,1736278232976,-150.0,9.348e-05,2]
[348045281,1736278232987,-150.0,9.375e-05,2]
[348045282,1736278232997,-150.0,9.391e-05,2]
[348045283,1736278233007,-13100.0,9.4e-05,3]
[348045284,1736278233018,-150.0,9.409e-05,2]
[348045285,1736278233028,-693.12821159,9.425e-05,2]
[348045286,1736278233049,-78.75178841,9.425e-05,2]
[348045287,1736278233303,-734.95595635,9.425e-05,2]
[348045288,1736278233334,-36.92404365,9.425e-05,2]
[348045289,1736278233344,-352.68915835,9.425e-05,2]
[348045290,1736278233356,-343.44084165,9.425e-05,2]
[348045291,1736278233367,-150.0,9.435e-05,2]
[348045292,1736278233378,-150.0,9.444e-05,2]
[348045293,1736278233388,-150.0,9.465e-05,2]
[348045294,1736278233399,-150.0,9.478e-05,2]
[348045295,1736278233411,-217.873,9.5e-05,2]
[348045296,1736278233421,-437.23400777,9.5e-05,2]
[348045303,1736278238341,-334.64599223,9.5e-05,2]
[348045304,1736278238350,-150.0,9.5e-05,2]
[348045305,1736278238359,-914.48785357,9.5e-05,3]
[348045306,1736278238370,-6825.83544682,9.5e-05,3]
[348045307,1736278238604,-326.45,9.5e-05,3]
[348045308,1736278238615,-8333.22669961,9.5e-05,3]
[348045309,1736278238628,-150.0,9.522e-05,2]
[348045310,1736278238637,-150.0,9.544e-05,2]
[348045311,1736278238647,-150.0,9.55e-05,2]
[348045312,1736278238656,-150.0,9.556e-05,2]
[348045313,1736278238665,-150.0,9.558e-05,2]
[348045314,1736278238675,-150.0,9.565e-05,2]
[348045315,1736278238684,-150.0,9.576e-05,2]
[348045316,1736278238693,-150.0,9.58e-05,2]
[348045317,1736278238702,-150.0,9.583e-05,2]
[348045318,1736278238712,-150.0,9.591e-05,2]
[348045319,1736278238721,-385.3619,9.6e-05,2]
[348045320,1736278238734,-3200.0,9.6e-05,3]
[348045321,1736278238744,-150.0,9.609e-05,2]
[348045322,1736278238753,-150.0,9.625e-05,2]
[348045323,1736278238763,-150.0,9.652e-05,2]
[348045324,1736278238774,-150.0,9.667e-05,2]
[348045325,1736278238783,-1500.0,9.687e-05,2]
[348045326,1736278238793,-150.0,9.696e-05,2]
[348045327,1736278238803,-3200.0,9.7e-05,3]
[348045328,1736278238812,-150.0,9.739e-05,2]
[348045329,1736278238822,-150.0,9.75e-05,2]
[348045330,1736278238831,-8887.5110428,9.762e-05,2]
[348045331,1736278238843,-2041.8,9.762e-05,2]
[348045332,1736278238854,-64.6889572,9.762e-05,2]
[348045333,1736278238863,-150.0,9.778e-05,2]
[348045334,1736278238875,-150.0,9.783e-05,2]
[348045335,1736278238884,-150.0,9.796e-05,2]
[348045336,1736278238894,-500.0,9.799e-05,2]
[348045337,1736278238903,-70.3329443,9.799e-05,2]
[348045338,1736278238927,-429.6670557,9.799e-05,2]
[348045339,1736278238937,-500.0,9.799e-05,2]
[348045340,1736278238946,-500.0,9.799e-05,2]
[348045341,1736278238956,-500.0,9.799e-05,2]
[348045342,1736278238965,-500.0,9.799e-05,2]
[348045343,1736278238974,-500.0,9.799e-05,2]
[348045344,1736278238984,-500.0,9.799e-05,2]
[348045345,1736278238993,-500.0,9.799e-05,2]
[348045346,1736278239003,-500.0,9.799e-05,2]
[348045347,1736278239012,-565.64,9.799e-05,2]
[348045348,1736278239022,-1302.14,9.799e-05,2]
[348045349,1736278239031,-500.0,9.799e-05,2]
[348045350,1736278239040,-500.0,9.799e-05,2]
[348045351,1736278239050,-205.0,9.8e-05,2]
[348045352,1736278239059,-3200.0,9.8e-05,3]
[348045353,1736278239068,-2805.13068719,9.8e-05,2]
[348045354,1736278239079,-27811.24733751,9.8e-05,2]
[348045355,1736278239090,-2123.30950307,9.8e-05,2]
[348045356,1736278239108,-316.17,9.8e-05,2]
[348045357,1736278239136,-26992.01476081,9.8e-05,2]
[348045358,1736278239147,-6671.78667434,9.8e-05,2]
[348045359,1736278239159,-18929.5205029,9.8e-05,2]
[348045360,1736278239169,-8695.33159424,9.8e-05,2]
[348045361,1736278239180,-736.57390145,9.8e-05,2]
[348045362,1736278239191,-618.90086075,9.8e-05,2]
[348045363,1736278239202,-400.97885,9.8e-05,2]
[348045364,1736278239214,-480.891175,9.8e-05,2]
[348045365,1736278239225,-528.69395831,9.8e-05,2]
[348045366,1736278239246,-4593.96599,9.8e-05,2]
[348045367,1736278239257,-16991.45,9.8e-05,2]
[348045368,1736278239268,-557.91029838,9.8e-05,2]
[348045369,1736278239287,-21519.50476761,9.8e-05,2]
[348045370,1736278239296,-150.0,9.823e-05,2]
[348045372,1736278239305,-150.0,9.826e-05,2]
[348045374,1736278239315,-1500.0,9.831e-05,2]
[348045376,1736278239323,-873.0,9.836e-05,2]
[348045378,1736278239332,-365.52,9.836e-05,2]
[348045379,1736278239341,-1955.14,9.836e-05,2]
[348045381,1736278239351,-872.67,9.836e-05,2]
[348045383,1736278239359,-150.0,9.837e-05,2]
[348045409,1736278239585,-150.0,9.852e-05,2]
[348045411,1736278239596,-150.0,9.854e-05,2]